bitfinex/quotes_ETHUSD_20241106
["timestamp","ask_amount","ask_price","bid_price","bid_amount"]
[1730899410257,4.37251,2616.1,2615.1,0.7653]
[1730899410450,3.82313,2615.7,2615.2,3.82379]
[1730899410677,3.82323,2615.6,2615.2,3.82379]
[1730899411184,3.82323,2615.6,2615.1,4.5892]
[1730899411542,3.82313,2615.7,2615.1,4.5892]
[1730899411543,3.82308,2615.7,2615.2,3.82372]
[1730899411738,0.55,2616.1,2615.7,3.82305]
[1730899411946,0.55,2616.1,2615.2,3.90026656]
[1730899411947,7.34263519,2616.4,2616.0,3.82262]
[1730899412177,7.6319,2616.5,2615.9,3.82277]
[1730899412348,3.82167,2616.7,2616.1,3.82248]
[1730899412872,3.82176,2616.6,2616.1,3.82248]
[1730899413069,3.82167,2616.7,2616.0,4.6068]
[1730899413274,3.82197,2616.5,2616.0,0.7842]
[1730899413845,3.82152,2616.8,2616.0,0.7842]
[1730899414052,3.82233,2616.2,2616.1,0.03560096]
[1730899414286,3.82293,2615.8,2615.3,0.7912]
[1730899414471,4.586819,2616.2,2615.3,0.7912]
[1730899414472,3.82308,2615.7,2615.3,0.7912]
[1730899414976,3.82336,2615.5,2615.1,0.841318]
[1730899415274,3.82352,2615.4,2615.1,0.841318]
[1730899415463,3.82352,2615.4,2615.0,0.7674]
[1730899415677,3.82352,2615.4,2615.2,0.03621398]
[1730899415836,3.82352,2615.4,2615.1,0.0362791]
[1730899416163,3.82352,2615.4,2615.2,0.03621398]
[1730899416462,3.82329,2615.6,2615.1,3.82387]
[1730899416766,3.82329,2615.6,2615.2,0.03621398]
[1730899417281,3.82338,2615.5,2615.2,0.03621398]
[1730899417633,3.8232,2615.7,2615.1,3.82391]
[1730899417962,0.3763,2615.8,2615.2,0.03662748]
[1730899417963,3.82348,2615.5,2615.2,0.03662748]
[1730899418280,3.82348,2615.5,2614.8,3.82429]
[1730899418281,3.82373,2615.3,2614.8,3.82429]
[1730899418981,3.82373,2615.3,2614.7,0.8178]
[1730899418982,3.82365,2615.3,2614.9,3.82415]
[1730899419172,3.82365,2615.3,2614.7,8.46671]
[1730899419394,0.55,2615.6,2614.7,4.64219]
[1730899419581,3.82361,2615.4,2614.7,4.64219]
[1730899419739,3.82361,2615.4,2614.9,3.82415]
[1730899419939,7.6472,2615.4,2614.9,3.82415]
[1730899420282,3.82366,2615.3,2614.9,3.82415]
[1730899420484,3.82332,2615.6,2614.9,3.82415]
[1730899420808,3.82363,2615.4,2614.9,3.82415]
[1730899421075,3.82368,2615.3,2614.9,3.82415]
[1730899422052,3.82363,2615.4,2614.9,7.64831]
[1730899422353,3.82363,2615.4,2615.0,3.82408]
[1730899422559,3.82337,2615.5,2615.0,3.82408]
[1730899422955,3.82354,2615.4,2615.0,3.82408]
[1730899423361,3.82364,2615.4,2614.9,3.82423]
[1730899423568,3.8235,2615.4,2614.9,7.64846]
[1730899423893,3.82351,2615.4,2615.0,3.82399]
[1730899424085,3.82351,2615.4,2614.9,3.82423]
[1730899424306,3.82374,2615.3,2614.7,4.64221]
[1730899424596,3.82386,2615.2,2614.7,4.64221]
[1730899425467,3.82374,2615.3,2614.8,3.82435]
[1730899425777,3.82374,2615.3,2614.8,3.82427]
[1730899426064,3.82373,2615.3,2614.8,3.82427]
[1730899426353,3.82373,2615.3,2614.7,4.64221]
[1730899426486,3.8238,2615.2,2614.7,8.46666]
[1730899426866,3.82397,2615.1,2614.7,0.8178]
[1730899427392,3.8238,2615.2,2614.7,4.64232]
[1730899427551,3.82386,2615.2,2614.7,4.64232]
[1730899427750,3.82386,2615.2,2614.7,8.46684]
[1730899428261,3.82386,2615.2,2614.7,4.64232]
[1730899428443,3.82362,2615.4,2614.7,1.664502]
[1730899428470,4.10365877,2615.3,2614.8,3.82427]
[1730899428652,4.10380877,2615.2,2614.8,3.82427]
[1730899429000,3.82381,2615.2,2614.9,0.03704324]
[1730899429489,3.82358,2615.4,2614.9,0.03704324]
[1730899429724,0.28016797,2615.3,2614.9,0.03704324]
[1730899429974,7.64598,2615.8,2615.3,3.82356]
[1730899430217,0.28018242,2615.3,2615.1,3.82382]
[1730899430398,3.82315,2615.7,2615.1,4.206202]
[1730899430555,0.28035037,2615.6,2615.2,3.82371]
[1730899430753,0.28035037,2615.5,2615.3,0.0370371]
[1730899430948,3.82315,2615.7,2615.3,0.0370371]
[1730899431153,4.10355331,2615.6,2615.3,0.0370371]
[1730899431353,0.28033331,2615.5,2615.2,3.82378]
[1730899431602,4.1988,2616.1,2615.1,3.82382]
[1730899431603,0.28033331,2615.4,2615.3,0.0370371]
[1730899431750,0.28033331,2615.4,2614.8,3.82427]
[1730899431953,4.10417982,2615.3,2614.9,0.03729761]
[1730899432187,0.28050982,2615.2,2615.0,3.82407]
[1730899432460,0.28050982,2615.1,2615.0,3.82407]
[1730899432668,0.28050982,2615.1,2614.8,3.82429]
[1730899432808,0.28050982,2615.1,2614.8,3.82437]
[1730899433003,0.28050982,2615.0,2614.8,3.82437]
[1730899433211,3.82388,2615.2,2614.7,4.64224]
[1730899433703,0.28102979,2615.1,2614.9,3.82423]
[1730899433893,3.82347,2615.5,2614.9,3.82423]
[1730899434094,3.82368,2615.3,2614.9,3.82423]
[1730899434291,0.28104173,2615.2,2614.9,3.82423]
[1730899434476,0.28104173,2615.1,2614.9,3.82423]
[1730899434672,7.64697,2615.5,2614.9,7.64838]
[1730899434876,0.28104476,2615.4,2614.9,7.64838]
[1730899435101,0.28104476,2615.3,2614.9,3.82415]
[1730899435404,0.28104476,2615.2,2614.8,3.82437]
[1730899435614,0.28104476,2615.1,2614.8,3.82437]
[1730899435791,0.28104476,2615.0,2614.8,3.82437]
[1730899436126,5.0026882,2615.5,2614.9,3.82421]
[1730899436418,3.82366,2615.3,2614.9,3.82421]
[1730899436578,3.82366,2615.3,2614.7,0.8178]
[1730899436579,0.28105974,2615.2,2614.7,0.8178]
[1730899436772,0.28105974,2615.1,2614.8,3.82436]
[1730899436972,7.64744,2615.3,2614.8,3.82436]
[1730899437424,0.28107123,2615.2,2614.8,3.82436]
[1730899437574,0.28107123,2615.1,2614.8,3.82436]
[1730899437776,3.82323,2615.6,2614.7,4.64229]
[1730899437979,0.3763,2616.0,2614.7,4.64229]
[1730899437980,0.28105384,2615.5,2615.2,3.82372]
[1730899438270,0.28105384,2615.4,2615.3,4.63785]
[1730899438376,7.34263519,2615.9,2615.3,4.63785]
[1730899438580,0.28107596,2615.8,2615.4,3.82346]
[1730899438781,12.31963371,2615.9,2615.5,0.03688313]
[1730899438782,0.28107596,2615.7,2615.5,0.03688313]
[1730899439030,0.28107596,2615.6,2615.3,8.46139]
[1730899439323,0.28107596,2615.5,2615.3,3.82362]
[1730899439491,8.49679371,2615.9,2615.4,3.8235]
[1730899439696,0.28105069,2615.8,2615.4,3.8235]
[1730899440020,8.49679371,2615.9,2615.5,3.82333]
[1730899440021,0.28105069,2615.7,2615.5,3.82333]
[1730899440219,0.28105069,2615.6,2615.5,3.82333]
[1730899440732,3.82219,2616.3,2615.7,3.82306]
[1730899440975,0.28110852,2616.2,2616.1,3.82239]
[1730899441114,3.8216,2616.7,2616.2,3.82225]
[1730899441312,1.906177,2616.9,2616.0,0.8229]
[1730899441313,3.82136,2616.9,2616.0,0.8229]
[1730899441538,3.81,2617.1,2616.0,0.8229]
[1730899441539,3.81,2617.1,2616.4,3.82195]
[1730899441838,3.8216,2616.8,2616.2,3.82223]
[1730899442124,3.8224,2616.2,2615.7,0.7928]
[1730899442321,0.28113232,2616.1,2615.7,0.7928]
[1730899442534,0.28113232,2616.0,2615.8,3.82285]
[1730899442685,0.28113232,2615.9,2615.7,0.7928]
[1730899442892,0.28113232,2615.9,2615.3,3.82358]
[1730899442893,3.82279,2615.9,2615.3,0.7827]
[1730899443141,3.8232,2615.7,2615.0,4.60673]
[1730899443347,3.82335,2615.6,2615.0,4.60678]
[1730899443622,3.82339,2615.5,2615.0,0.7827]
[1730899443826,0.28116427,2615.4,2615.0,0.7827]
[1730899444065,4.10482427,2615.3,2614.6,4.65678]
[1730899444266,0.28116427,2615.2,2614.6,4.65678]
[1730899444410,4.10523427,2615.1,2614.6,0.8322]
[1730899444744,0.28116427,2615.0,2614.6,0.8322]
[1730899444949,0.28116427,2614.9,2614.6,0.8322]
[1730899445128,0.28116427,2614.8,2614.5,3.82481]
[1730899445440,0.28116427,2614.7,2614.5,3.82471]
[1730899445645,3.8241,2615.0,2614.5,3.82471]
[1730899445845,0.28155529,2614.9,2614.6,0.03724884]
[1730899446048,0.28155529,2614.8,2614.6,0.03724884]
[1730899446347,0.28155529,2614.7,2614.6,0.03724884]
[1730899447044,0.28155529,2614.7,2614.6,3.86191884]
[1730899447243,3.82372,2615.3,2614.6,4.63058172]
[1730899447441,0.2815219,2615.2,2614.8,3.82437]
[1730899447753,0.2815219,2615.1,2615.0,3.82401]
[1730899447946,0.2815219,2615.1,2615.0,3.86099827]
[1730899448151,11.16576519,2615.7,2615.0,0.03698827]
[1730899448452,3.82372,2615.3,2615.0,0.03698827]
[1730899448725,3.82381,2615.2,2615.0,0.03698827]
[1730899448867,7.64771,2615.2,2615.0,0.03698827]
[1730899449159,3.82382,2615.2,2614.6,0.7687]
[1730899449352,3.82382,2615.2,2615.1,0.03710967]
[1730899449517,3.82411,2615.0,2614.6,0.7687]
[1730899449732,3.82411,2615.0,2614.7,0.03737022]
[1730899450547,3.82411,2615.0,2614.2,0.8012]
[1730899450870,7.64827,2615.0,2614.4,3.82486]
[1730899451045,3.82411,2615.0,2614.3,3.86260086]
[1730899451355,3.82424,2614.9,2614.4,3.86268172]
[1730899451650,3.82424,2614.9,2614.4,0.03772172]
[1730899451810,4.626198,2615.2,2614.4,0.03772172]
[1730899452029,0.3763,2614.8,2613.8,0.05737799]
[1730899452214,0.3763,2614.8,2613.5,3.82618]
[1730899452215,3.82528,2614.2,2613.5,3.82618]
[1730899452415,3.82504,2614.4,2613.7,3.82593]
[1730899452750,3.82504,2614.4,2613.8,3.86394579]
[1730899452914,3.82504,2614.4,2613.9,3.82568]
[1730899453116,0.3763,2614.7,2614.0,0.03944517]
[1730899453307,3.82444,2614.8,2614.2,4.62086]
[1730899453508,11.54293519,2615.1,2614.4,3.82485]
[1730899453787,3.81,2615.2,2614.8,3.82429]
[1730899454265,3.81,2615.2,2614.9,0.04199921]
[1730899454435,5.31615652,2615.6,2615.0,3.82407]
[1730899454758,5.31615652,2615.6,2615.1,0.05020366]
[1730899454956,0.53161565,2615.5,2614.9,0.8115]
[1730899455192,0.3763,2615.6,2615.1,3.82392]
[1730899455331,3.82299,2615.8,2615.2,3.8793733]
[1730899455541,8.73354727,2616.1,2615.2,3.8793733]
[1730899455542,3.81,2616.1,2615.3,0.07647344]
[1730899455730,3.81,2616.1,2615.4,0.7568]
[1730899456189,4.19842,2616.4,2615.9,3.82271]
[1730899456190,3.82212,2616.4,2615.9,3.82271]
[1730899456268,3.82212,2616.4,2615.8,3.82287]
[1730899456453,3.8224,2616.2,2615.6,3.82315]
[1730899456640,7.64484,2616.2,2615.6,3.82312]
[1730899456954,7.64484,2616.2,2615.4,4.58023]
[1730899456955,0.764484,2616.2,2615.4,0.7568]
[1730899457126,0.55,2615.9,2615.2,7.64735]
[1730899457446,3.82292,2615.8,2615.2,7.7030433]
[1730899457621,3.82292,2615.8,2615.2,0.0556733]
[1730899457811,3.82292,2615.8,2615.2,3.8793533]
[1730899458044,4.37278,2615.9,2615.3,3.82353]
[1730899458432,3.82271,2616.0,2615.4,3.82346]
[1730899458660,7.64507,2616.1,2615.3,4.29376533]
[1730899458809,3.8228,2615.9,2615.4,3.82349]
[1730899459345,3.82292,2615.8,2615.1,4.64589]
[1730899459529,0.55,2615.8,2615.3,3.82364]
[1730899459716,1.04228,2615.8,2615.1,4.64589]
[1730899459949,5.478,2616.2,2615.6,3.82312]
[1730899460273,3.82213,2616.4,2615.8,4.60548]
[1730899460416,4.17353035,2616.3,2615.8,0.7827]
[1730899460727,0.35125035,2616.2,2615.8,0.7827]
[1730899461315,3.82198,2616.5,2615.9,3.82263]
[1730899461493,0.35119337,2616.4,2615.8,0.7827]
[1730899461611,5.64646519,2616.6,2615.9,3.82277]
[1730899461813,5.64646519,2616.6,2616.0,3.82251]
[1730899462014,1.82463519,2616.6,2616.1,3.8224]
[1730899462427,1.82463519,2616.6,2616.1,7.64478]
[1730899462622,2.80789471,2616.6,2616.1,3.82238]
[1730899462835,3.82211,2616.4,2615.9,3.82268]
[1730899463017,3.82191,2616.5,2615.9,3.82268]
[1730899463250,6.62964471,2616.6,2615.9,3.82268]
[1730899463447,5.64638519,2616.6,2615.9,3.82268]
[1730899463631,5.64638519,2616.6,2616.1,3.82245]
[1730899463877,3.8219,2616.5,2616.1,3.82245]
[1730899464055,5.64638519,2616.6,2616.1,3.82245]
[1730899464756,3.82191,2616.5,2616.1,3.82245]
[1730899465064,3.82211,2616.4,2615.9,3.82268]
[1730899465956,9.288,2616.9,2616.6,3.82172]
[1730899466168,3.81,2616.9,2616.6,3.82172]
[1730899466342,3.82095,2617.2,2616.6,3.82172]
[1730899466563,3.82082,2617.3,2616.6,3.82172]
[1730899466883,3.81,2617.6,2616.8,3.82146]
[1730899467116,3.81,2617.6,2617.2,3.82076]
[1730899467423,3.81,2617.6,2617.2,7.64153]
[1730899467627,3.81,2617.6,2617.2,3.82076]
[1730899467889,3.82095,2617.2,2616.6,3.82163]
[1730899468045,0.55,2617.3,2616.6,3.82163]
[1730899468386,0.55,2617.3,2616.8,3.82144]
[1730899468548,0.55,2617.3,2616.5,0.798]
[1730899468549,3.82051,2617.5,2616.9,3.82128]
[1730899468727,3.82074,2617.3,2616.7,3.8215]
[1730899469174,3.82052,2617.5,2616.9,3.8213]
[1730899469958,5.0418966,2617.5,2616.9,3.82123]
[1730899470160,5.0418966,2617.5,2616.7,3.82148]
[1730899470161,1.2213766,2617.5,2616.7,3.82148]
[1730899470372,3.82095,2617.2,2616.6,3.82172]
[1730899470548,3.82103,2617.1,2616.6,3.82172]
[1730899471141,3.82103,2617.1,2616.6,7.64339]
[1730899471335,3.82048,2617.5,2616.6,0.844139]
[1730899471546,3.82067,2617.4,2616.8,3.82144]
[1730899471744,4.573016,2617.6,2617.0,3.82106]
[1730899471977,4.573016,2617.6,2616.6,3.82164]
[1730899472134,0.4573016,2617.5,2616.7,3.82159]
[1730899472340,3.8206,2617.4,2616.8,3.82146]
[1730899472549,3.82077,2617.3,2616.8,3.82146]
[1730899473193,3.82084,2617.3,2616.8,3.82145]
[1730899473471,3.82043,2617.5,2616.5,0.798]
[1730899473633,3.82087,2617.2,2616.7,3.82153]
[1730899474339,4.573016,2617.6,2616.5,0.798]
[1730899474559,3.82069,2617.4,2616.8,3.82138]
[1730899474732,3.82087,2617.3,2616.8,3.82138]
[1730899474940,3.82109,2617.1,2616.5,0.798]
[1730899475147,3.82109,2617.1,2616.6,3.82168]
[1730899476234,3.82088,2617.2,2616.6,3.82163]
[1730899476428,7.67893519,2617.8,2617.3,3.82065]
[1730899476677,11.12270519,2617.8,2617.3,3.82073]
[1730899476968,3.82032,2617.6,2617.1,3.82101]
[1730899477268,8.41490571,2617.8,2617.0,3.82107]
[1730899477269,12.23504571,2617.8,2617.2,3.82085]
[1730899477470,8.41490571,2617.8,2617.4,3.82054]
[1730899477645,3.81967,2618.1,2617.6,3.8202]
[1730899477841,3.81972,2618.0,2617.5,4.62663]
[1730899478157,4.774205,2618.0,2617.5,4.62663]
[1730899478565,0.954485,2618.0,2617.5,0.8062]
[1730899478762,3.81967,2618.1,2617.6,3.82026]
[1730899479283,7.63937,2618.1,2617.6,3.82026]
[1730899479504,3.81972,2618.0,2617.6,3.82026]
[1730899479849,3.81944,2618.2,2617.7,3.82002]
[1730899480124,3.81963,2618.1,2617.5,4.62654]
[1730899480266,3.81963,2618.1,2617.6,3.82018]
[1730899480573,3.81963,2618.1,2617.6,3.82025]
[1730899481761,5.724241,2618.5,2617.7,0.85550036]
[1730899481762,1.528921,2618.5,2617.7,0.85550036]
[1730899481959,3.81949,2618.2,2617.7,3.82007]
[1730899482175,3.81949,2618.2,2617.8,3.81998]
[1730899482365,3.81927,2618.3,2617.8,3.81998]
[1730899482701,4.583128,2618.3,2617.9,3.81983]
[1730899482992,3.81928,2618.3,2617.9,3.81983]
[1730899483187,3.81928,2618.3,2617.8,3.81999]
[1730899483385,3.81921,2618.4,2617.7,3.82005]
[1730899483544,0.381921,2618.4,2617.5,3.82034]
[1730899483898,3.81972,2618.0,2617.5,7.64069]
[1730899484046,3.81972,2618.0,2617.5,3.82034]
[1730899484446,3.81944,2618.2,2617.7,3.82007]
[1730899484887,3.81959,2618.1,2617.6,3.82028]
[1730899485263,4.201384,2618.2,2617.5,3.82043]
[1730899485264,0.381944,2618.2,2617.5,3.82043]
[1730899485595,3.81956,2618.1,2617.4,4.59958]
[1730899485896,3.82001,2617.8,2617.3,3.82072]
[1730899486053,3.82001,2617.8,2617.2,3.82086]
[1730899486054,3.82023,2617.7,2617.2,3.82086]
[1730899486410,3.82001,2617.8,2617.2,3.82086]
[1730899486556,3.82075,2617.3,2616.8,4.64124]
[1730899486774,4.202825,2617.3,2616.8,4.64124]
[1730899487015,3.82075,2617.3,2616.8,4.64124]
[1730899487290,3.82075,2617.3,2616.6,3.82166]
[1730899487505,3.82101,2617.2,2616.6,7.64334]
[1730899487829,3.82101,2617.2,2616.7,3.82159]
[1730899487950,4.19705,2617.3,2616.6,3.82166]
[1730899488150,4.19705,2617.3,2616.8,3.82146]
[1730899488364,8.01791,2617.3,2616.8,3.82146]
[1730899488593,8.01791,2617.3,2616.6,3.82166]
[1730899488594,3.82087,2617.2,2616.6,7.64327]
[1730899488762,3.82087,2617.2,2616.7,3.82158]
[1730899489510,4.19705,2617.3,2616.5,0.8199]
[1730899489655,3.82089,2617.2,2616.6,3.82167]
[1730899489853,3.82089,2617.2,2616.7,3.82151]
[1730899490885,4.19705,2617.3,2616.6,3.82166]
[1730899491239,4.19705,2617.3,2616.8,3.82144]
[1730899491516,4.616755,2617.3,2616.8,3.82144]
[1730899491651,3.82098,2617.2,2616.6,3.82166]
[1730899491984,3.82128,2617.0,2616.5,5.105996]
[1730899492196,3.82128,2617.0,2616.5,4.64179]
[1730899492388,3.82106,2617.1,2616.6,3.82172]
[1730899492969,8.437655,2617.3,2616.7,3.82159]
[1730899493211,4.1971,2617.3,2616.6,3.82172]
[1730899493533,4.1971,2617.3,2616.8,3.82144]
[1730899493983,3.82031,2617.6,2617.1,3.82101]
[1730899494200,4.19652,2617.7,2617.2,3.82087]
[1730899494597,3.81994,2617.9,2617.3,3.89703771]
[1730899494775,3.82001,2617.8,2617.3,3.82062]
[1730899494976,3.82025,2617.7,2617.2,0.8273]
[1730899495228,3.82025,2617.7,2617.2,4.64817]
[1730899495509,4.584269,2617.7,2617.0,3.82113]
[1730899495729,4.584249,2617.7,2617.0,3.82107]
[1730899495920,3.82045,2617.5,2617.0,3.82107]
[1730899496209,3.8206,2617.4,2616.9,4.61194]
[1730899497006,3.82045,2617.5,2616.9,4.61194]
[1730899497174,3.82045,2617.5,2617.0,3.82116]
[1730899497886,7.64098,2617.5,2617.0,3.82116]
[1730899499209,3.82058,2617.4,2617.0,3.82116]
[1730899499713,3.82058,2617.4,2616.9,4.612]
[1730899500283,3.82109,2617.1,2616.6,0.8028]
[1730899500510,3.82099,2617.2,2616.7,3.82157]
[1730899500836,3.82103,2617.1,2616.6,4.62446]
[1730899501036,3.82103,2617.1,2616.6,3.82166]
[1730899501226,1.140403,2617.4,2616.3,0.8028]
[1730899501414,3.82073,2617.3,2616.7,3.82152]
[1730899501617,4.961093,2617.4,2616.8,3.82143]
[1730899501847,0.3763,2617.4,2616.8,3.82137]
[1730899502017,0.3763,2617.4,2617.0,3.82107]
[1730899502207,11.12285519,2617.7,2617.2,3.82085]
[1730899502405,12.61713371,2617.7,2617.2,3.82085]
[1730899502608,8.79691371,2617.7,2617.3,3.82064]
[1730899503104,7.30263519,2617.7,2617.3,3.82064]
[1730899503457,7.30263519,2617.7,2616.9,9.01092974]
[1730899503458,7.30263519,2617.7,2617.5,3.82042]
[1730899503663,11.81581,2618.2,2617.3,3.82062]
[1730899503664,3.81998,2617.9,2617.3,3.82062]
[1730899503839,3.82008,2617.8,2617.3,3.82062]
[1730899504038,3.81979,2618.0,2617.5,3.82031]
[1730899504271,3.81956,2618.1,2617.6,3.82021]
[1730899504723,3.81971,2618.0,2617.4,3.82049]
[1730899504957,3.81971,2618.0,2617.5,3.82042]
[1730899505574,3.82008,2617.8,2617.2,3.82079]
[1730899505762,3.82008,2617.8,2617.3,3.82063]
[1730899506068,4.37018,2617.7,2617.2,3.82079]
[1730899506835,0.55,2617.7,2617.2,3.82079]
[1730899507070,0.55,2617.7,2617.3,3.82065]
[1730899507253,5.18919,2617.7,2617.2,3.82086]
[1730899508052,5.18919,2617.7,2617.1,3.82088]
[1730899508374,0.55,2617.7,2617.3,3.82071]
[1730899508965,3.82,2617.8,2617.3,3.82071]
[1730899508966,0.55,2617.8,2617.4,3.8205]
[1730899509272,3.81974,2618.0,2617.5,3.82036]
[1730899509479,4.1863,2618.2,2617.3,3.82065]
[1730899509663,3.82006,2617.8,2617.3,3.82065]
[1730899509884,3.82006,2617.8,2617.3,7.64128]
[1730899510358,0.55,2617.7,2617.3,3.82063]
[1730899510538,4.36985,2617.9,2617.3,3.82063]
[1730899510746,0.55,2617.9,2617.3,3.82063]
[1730899510965,0.55,2617.7,2617.3,3.82063]
[1730899511349,0.55,2617.7,2617.2,3.82083]
[1730899511560,3.8203,2617.6,2617.1,3.82095]
[1730899511764,3.8203,2617.6,2617.0,3.82105]
[1730899512087,3.8203,2617.6,2617.2,3.82085]
[1730899512569,3.8203,2617.6,2617.0,3.82105]
[1730899512771,3.8203,2617.6,2617.1,3.821]
[1730899512975,3.8203,2617.6,2617.0,3.82105]
[1730899513282,3.8203,2617.6,2617.1,3.82095]
[1730899514381,7.64071,2617.6,2617.1,3.82095]
[1730899514541,3.8203,2617.6,2617.0,3.82105]
[1730899514878,3.81988,2617.9,2617.5,3.82043]
[1730899515048,0.35127664,2617.8,2617.5,3.82043]
[1730899515246,7.63982,2617.9,2617.4,3.82056]
[1730899515448,0.35125632,2617.8,2617.4,3.82056]
[1730899515688,3.81988,2617.9,2617.4,3.82056]
[1730899515979,0.35124739,2617.8,2617.4,3.82056]
[1730899516279,3.82001,2617.8,2617.3,3.82062]
[1730899516594,4.36987,2617.9,2617.4,3.82048]
[1730899516768,0.3511844,2617.8,2617.4,3.82048]
[1730899517085,3.3763,2618.2,2617.5,0.7585]
[1730899517294,6.81928,2618.3,2617.8,7.63978]
[1730899517586,0.3511242,2618.2,2617.9,3.81979]
[1730899517744,3.81927,2618.3,2617.9,3.81979]
[1730899517950,0.3510712,2618.2,2617.9,3.81977]
[1730899518154,11.12177519,2618.4,2617.9,3.81978]
[1730899518356,0.35106398,2618.3,2617.9,4.58455]
[1730899518573,3.81863,2618.8,2618.3,3.81919]
[1730899518753,0.3509927,2618.7,2618.2,3.81941]
[1730899519077,0.39839792,2618.9,2618.5,3.81897]
[1730899519361,0.35103331,2618.8,2618.7,3.81868]
[1730899519548,0.39839792,2618.9,2618.6,3.81874]
[1730899519718,0.39839792,2618.9,2618.8,0.7708]
[1730899519912,3.81755,2619.5,2618.9,3.81831]
[1730899520090,3.81755,2619.5,2618.9,7.63662]
[1730899520296,3.81768,2619.4,2618.9,3.81831]
[1730899520496,3.81752,2619.5,2618.8,0.7708]
[1730899520678,0.381755,2619.4,2618.9,3.81828]
[1730899521436,0.381755,2619.4,2618.8,0.7708]
[1730899521437,3.81752,2619.5,2618.8,0.7708]
[1730899521628,0.3763,2619.6,2618.9,3.81838]
[1730899521773,3.81768,2619.4,2618.9,3.81838]
[1730899521979,0.55,2619.5,2618.9,3.81838]
[1730899522299,0.55,2619.5,2619.0,3.81821]
[1730899522513,4.36754,2619.5,2618.9,3.81825]
[1730899522698,4.36754,2619.5,2618.8,0.7708]
[1730899522699,1.48829016,2619.5,2618.8,0.7708]
[1730899522955,0.55,2619.3,2618.8,0.7708]
[1730899523120,4.3679,2619.3,2618.8,0.7708]
[1730899523919,3.81796,2619.2,2618.8,0.7708]
[1730899524879,0.55,2619.3,2618.8,0.7708]
[1730899525204,0.55,2619.4,2619.0,3.81817]
[1730899525553,7.19377,2619.6,2618.9,3.8183]
[1730899525876,0.55,2619.5,2618.9,3.8183]
[1730899526001,4.3676,2619.5,2618.9,3.8183]
[1730899526213,0.55,2619.5,2619.1,3.81803]
[1730899526542,0.55,2619.6,2619.1,3.81803]
[1730899526726,3.81753,2619.5,2619.1,3.81803]
[1730899527225,8.18488,2619.6,2619.1,3.81803]
[1730899527408,4.36737,2619.6,2619.1,3.81803]
[1730899527727,4.36737,2619.6,2619.2,3.81795]
[1730899528230,0.82174162,2619.7,2619.2,3.81795]
[1730899528448,0.82174162,2619.7,2618.9,0.45891]
[1730899528728,0.82174162,2619.7,2619.4,3.81756]
[1730899529007,0.82174162,2619.7,2619.6,4.62457]
[1730899529779,0.82174162,2619.7,2619.6,0.8072]
[1730899529977,0.82174162,2619.7,2619.6,4.62457]
[1730899530302,0.82174162,2619.7,2619.6,0.8072]
[1730899530741,0.82174162,2619.7,2619.6,4.62457]
[1730899531542,0.82174162,2619.7,2619.6,1.651398]
[1730899531725,0.82174162,2619.7,2619.6,5.468768]
[1730899532187,3.81596,2620.6,2620.0,3.81666]
[1730899532303,3.81596,2620.6,2619.8,0.75]
[1730899532304,3.81596,2620.6,2620.1,3.81663]
[1730899532727,3.81607,2620.5,2619.9,3.81683]
[1730899532993,3.81607,2620.5,2620.0,3.81678]
[1730899533118,3.81592,2620.6,2620.0,3.81678]
[1730899533327,3.81592,2620.6,2620.1,3.81663]
[1730899533501,3.81592,2620.6,2619.9,4.273513]
[1730899533907,3.81607,2620.5,2620.0,3.81679]
[1730899534255,3.81607,2620.5,2619.9,4.273513]
[1730899534256,4.36634,2620.4,2619.9,4.273613]
[1730899534762,4.36634,2620.4,2619.8,0.75]
[1730899534929,3.81674,2620.1,2619.7,3.81721]
[1730899535245,3.81649,2620.3,2619.7,3.81721]
[1730899535246,4.36651,2620.2,2619.7,3.81721]
[1730899535442,3.81622,2620.4,2619.7,3.81723]
[1730899535786,3.81621,2620.4,2619.9,3.81686]
[1730899536646,4.19228,2620.6,2619.8,0.38935691]
[1730899536816,4.36613,2620.5,2619.9,3.81693]
[1730899537147,3.81625,2620.4,2619.9,3.81693]
[1730899538406,4.36613,2620.5,2619.8,3.81697]
[1730899538609,3.81632,2620.4,2619.9,3.81692]
[1730899540227,3.81658,2620.2,2619.7,3.81715]
[1730899540433,0.55,2620.5,2619.6,3.81726]
[1730899540434,3.81621,2620.4,2619.6,3.81726]
[1730899540737,0.55,2620.3,2619.9,3.81689]
[1730899541127,0.55,2620.3,2619.8,3.81701]
[1730899541128,4.36636,2620.3,2619.8,3.81707]
[1730899541551,3.81651,2620.2,2619.7,4.35451256]
[1730899542369,0.55,2620.3,2619.8,0.81717626]
[1730899542739,4.36642,2620.3,2619.8,3.81706]
[1730899544254,4.36642,2620.3,2619.7,3.89355656]
[1730899544255,3.81656,2620.2,2619.7,0.07633656]
[1730899544430,3.81644,2620.3,2619.5,0.7923]
[1730899544636,3.81622,2620.4,2619.9,3.81686]
[1730899544831,3.81631,2620.4,2619.9,3.81686]
[1730899545444,3.81638,2620.3,2619.9,3.81686]
[1730899545647,3.81631,2620.4,2619.8,3.81708]
[1730899545962,3.81631,2620.4,2619.7,4.278053]
[1730899546197,3.81637,2620.3,2619.8,3.81696]
[1730899546588,3.81637,2620.3,2619.9,3.81692]
[1730899546788,3.81643,2620.3,2619.8,3.81706]
[1730899547074,3.81622,2620.4,2619.9,4.6264173]
[1730899547442,3.81636,2620.3,2619.8,3.81707]
[1730899549171,3.81636,2620.3,2619.9,3.81691]
[1730899550023,3.81636,2620.3,2619.8,3.81701]
[1730899550205,3.81651,2620.2,2619.8,3.81701]
[1730899550508,3.81642,2620.3,2619.8,3.817]